Workbook

Sheet 2022届毕业生
A1: 附件3：
A2: 2022届毕业生评优评先名额分配表
A3: 学院 | B3: 参考基数 | E3: 评优奖项
B4: 毕业生 人数 | C4: 班级 数量 | D4: 学生干部 总数 | E4: 校级 三好学生 | F4: 院级 三好学生 | G4: 校级优秀 学生干部 | H4: 院级优秀 学生干部 | I4: 优秀 毕业生
A5: 经济与商务外语学院 | B5: 482 | C5: 18 | D5: =C5*9 -> 162 | E5: =B5*0.03 -> 14 | F5: =B5*0.06 -> 29 | G5: =D5*0.05 -> 8 | H5: =D5*0.1 -> 16 | I5: =B5*0.2 -> 96
A6: 管理学院 | B6: 1052 | C6: 36 | D6: =C6*9 -> 324 | E6: =B6*0.03 -> 32 | F6: =B6*0.06 -> 63 | G6: =D6*0.05 -> 16 | H6: =D6*0.1 -> 32 | I6: =B6*0.2 -> 210
A7: 电子商务学院 | B7: 467 | C7: 17 | D7: 153 | E7: 14 | F7: =B7*0.06 -> 28 | G7: 8 | H7: 15 | I7: 93
A8: 物流学院 | B8: 194 | C8: 7 | D8: 63 | E8: 6 | F8: =B8*0.06 -> 12 | G8: 3 | H8: 6 | I8: 39
A9: 人工智能学院 | B9: 235 | C9: 10 | D9: 90 | E9: 7 | F9: =B9*0.06 -> 14 | G9: 5 | H9: 9 | I9: 47
A10: 计算机与自动化学院 | B10: 432 | C10: 16 | D10: 144 | E10: 13 | F10: =B10*0.06 -> 26 | G10: 7 | H10: 14 | I10: 86
A11: 环境与生物工程学院 | B11: 137 | C11: 6 | D11: 54 | E11: 4 | F11: 8 | G11: 3 | H11: 5 | I11: 27
A12: 文法学院 | B12: 402 | C12: 13 | D12: 117 | E12: 12 | F12: 24 | G12: 6 | H12: 12 | I12: 80
A13: 艺术与设计学院 | B13: 335 | C13: 15 | D13: 135 | E13: 10 | F13: 20 | G13: 7 | H13: 14 | I13: 67
A14: 应用技术学院 | B14: 931 | C14: 29 | D14: 261 | E14: 28 | F14: 56 | G14: 13 | H14: 26 | I14: 186
A15: 总计 | B15: =SUM(B5:B14) -> 4667 | C15: =SUM(C5:C14) -> 167 | D15: =SUM(D5:D14) -> 1503 | E15: 140 | F15: 280 | G15: 75 | H15: 150 | I15: 933
